bitfinex/quotes_BTCUSD_20220211
["timestamp","ask_amount","ask_price","bid_price","bid_amount"]
[1644590200457,0.19957014,43479.0,43474.0,0.06894624]
[1644590200660,0.057551,43478.0,43474.0,0.06894624]
[1644590201112,0.057551,43478.0,43460.0,0.23404771]
[1644590201313,0.057549,43476.0,43460.0,0.05755149]
[1644590201917,0.25211914,43476.0,43459.0,0.15]
[1644590202114,0.47841968,43479.0,43467.0,0.15]
[1644590202115,0.005,43479.0,43467.0,0.15]
[1644590202314,0.062542,43479.0,43468.0,0.08658278]
[1644590202515,0.33013309,43476.0,43468.0,0.08658278]
[1644590202913,0.33013309,43476.0,43471.0,0.34203301]
[1644590202914,0.38768209,43476.0,43471.0,0.34203301]
[1644590203112,0.38768209,43476.0,43468.0,0.08658278]
[1644590203514,0.057547,43475.0,43468.0,0.08658278]
[1644590203912,0.172651,43475.0,43469.0,0.325044]
[1644590204114,0.057547,43475.0,43469.0,0.325044]
[1644590204414,0.057553,43472.0,43468.0,0.01]
[1644590204678,0.32105185,43469.0,43468.0,0.01]
[1644590205081,0.62105185,43469.0,43468.0,0.01]
[1644590205280,0.62105185,43469.0,43468.0,0.04]
[1644590205281,0.32105185,43469.0,43468.0,0.04]
[1644590206278,0.172672,43471.0,43468.0,0.04]
[1644590206480,0.172668,43471.0,43468.0,0.04]
[1644590206679,0.11511,43471.0,43469.0,0.0735074]
[1644590207388,0.19457014,43482.0,43471.0,0.325044]
[1644590207583,0.29321268,43484.0,43470.0,0.15]
[1644590207584,0.3,43483.0,43470.0,0.15]
[1644590207780,0.24457014,43484.0,43470.0,0.475044]
[1644590207781,0.05,43484.0,43470.0,0.475044]
[1644590207980,0.05,43484.0,43475.0,0.49549306]
[1644590208605,0.05,43484.0,43469.0,0.1150673]
[1644590208808,0.26697408,43481.0,43471.0,0.2590957]
[1644590209005,0.00573759,43479.0,43471.0,0.2590957]
[1644590209204,0.00573759,43479.0,43471.0,0.05753645]
[1644590209604,0.00573759,43479.0,43472.0,0.08021571]
[1644590209804,0.005,43479.0,43472.0,0.76643916]
[1644590210205,0.0007376,43477.0,43472.0,0.76643916]
[1644590211006,0.005,43479.0,43472.0,0.76643916]
[1644590211412,0.00070198,43477.0,43472.0,0.68716035]
[1644590211805,2.00280667,43474.0,43472.0,0.68716035]
[1644590212061,0.00070198,43477.0,43472.0,0.68716035]
[1644590212256,0.005,43479.0,43472.0,0.68716035]
[1644590212457,0.00070198,43475.0,43472.0,0.68716035]
[1644590212662,0.00070198,43475.0,43474.0,0.2]
[1644590213058,0.00070198,43475.0,43474.0,0.25]
[1644590213257,0.00070198,43475.0,43474.0,0.2]
[1644590213460,0.005,43479.0,43474.0,0.2]
[1644590213662,0.00049425,43477.0,43475.0,0.05752593]
[1644590214662,0.005,43479.0,43478.0,0.15]
[1644590214860,0.005,43479.0,43478.0,0.54308642]
[1644590215059,0.005,43479.0,43478.0,0.61410647]
[1644590215659,0.005,43479.0,43478.0,1.11030073]
[1644590216106,0.005,43479.0,43478.0,1.35030073]
[1644590216909,0.00068073,43481.0,43480.0,0.325044]
[1644590217108,0.01113269,43487.0,43486.0,0.15]
[1644590217109,0.00841016,43487.0,43486.0,0.15]
[1644590217310,0.01,43499.0,43488.0,1.49044646]
[1644590217515,0.01,43499.0,43495.0,0.05]
[1644590217817,0.01,43509.0,43505.0,0.15]
[1644590218011,0.01,43509.0,43497.0,0.3]
[1644590218012,0.15674209,43499.0,43497.0,0.3]
[1644590218214,0.24472004,43519.0,43514.0,0.15]
[1644590218416,0.45999,43535.0,43519.0,1.1]
[1644590218417,0.19568499,43524.0,43519.0,1.1]
[1644590218612,0.05,43544.0,43518.0,0.2]
[1644590218613,0.24460624,43527.0,43523.0,1.15302406]
[1644590218812,0.24450636,43545.0,43537.0,0.15]
[1644590219012,0.05,43548.0,43531.0,0.15]
[1644590219210,0.05,43548.0,43528.0,0.39674074]
[1644590219211,0.74665211,43539.0,43528.0,0.39674074]
[1644590219416,0.74665211,43539.0,43523.0,0.0387]
[1644590219417,0.13819312,43535.0,43523.0,0.0387]
[1644590219863,0.00051933,43537.0,43523.0,0.0387]
[1644590220063,0.00051933,43537.0,43530.0,0.06866081]
[1644590220261,0.20413152,43535.0,43530.0,0.06866081]
[1644590220465,0.00051933,43537.0,43530.0,0.06866081]
[1644590220660,0.01,43539.0,43526.0,0.05745635]
[1644590220864,0.00051933,43535.0,43522.0,0.32224848]
[1644590221060,0.00051933,43535.0,43523.0,0.0387]
[1644590221265,0.31906809,43532.0,43524.0,0.29259711]
[1644590221465,0.00051933,43535.0,43524.0,0.06231501]
[1644590221664,0.00051933,43535.0,43515.0,0.0849801]
[1644590221864,0.05,43534.0,43512.0,0.3]
[1644590222063,0.05,43534.0,43513.0,0.0387]
[1644590222064,0.20074566,43530.0,43513.0,0.0387]
[1644590222264,0.1,43537.0,43513.0,0.0387]
[1644590222265,0.00073885,43532.0,43513.0,0.0387]
[1644590222664,0.00073885,43532.0,43527.0,0.37315885]
[1644590222864,0.00073885,43532.0,43528.0,0.08373309]
[1644590223167,0.01,43539.0,43529.0,0.00012679]
[1644590223413,0.00073885,43532.0,43529.0,0.00012679]
[1644590224013,0.00073885,43532.0,43530.0,0.325044]
[1644590224214,0.00295497,43538.0,43529.0,0.00012679]
[1644590224215,0.01,43539.0,43531.0,0.31447696]
[1644590224410,0.01,43539.0,43533.0,0.34474597]
[1644590224611,0.01,43539.0,43535.0,0.24]
[1644590224811,0.01295495,43539.0,43536.0,0.07631297]
[1644590225616,0.01,43539.0,43537.0,0.325044]
[1644590226014,0.00070047,43540.0,43537.0,0.325044]
[1644590226211,0.00070047,43540.0,43537.0,0.382478]
[1644590226412,0.00070047,43540.0,43538.0,0.58485308]
[1644590226712,0.05,43548.0,43539.0,0.35297695]
[1644590226913,0.01,43549.0,43540.0,0.325044]
[1644590227179,0.22285,43576.0,43548.0,0.25]
[1644590227180,0.01,43569.0,43548.0,0.25]
[1644590227384,0.04536567,43579.0,43554.0,0.95302406]
[1644590227385,0.06,43579.0,43554.0,0.95302406]
[1644590227578,0.06,43579.0,43558.0,0.40500237]
[1644590227877,0.06,43579.0,43569.0,0.05]
[1644590228076,0.06,43579.0,43570.0,0.663744]
[1644590228077,0.01,43579.0,43570.0,0.663744]
[1644590228275,0.00080496,43574.0,43573.0,0.11477364]
[1644590228477,0.00080496,43574.0,43573.0,1.4064977]
[1644590228676,0.05104736,43594.0,43573.0,1.4064977]
[1644590228677,0.3894,43617.0,43591.0,0.32673189]
[1644590228880,0.005,43599.0,43593.0,0.07531295]
[1644590229073,0.005,43599.0,43594.0,0.323964]
[1644590229273,0.005,43599.0,43595.0,0.322843]
[1644590229473,0.005,43599.0,43594.0,0.34238867]
[1644590229674,0.005,43599.0,43595.0,0.0387]
[1644590229875,0.05,43604.0,43596.0,0.323919]
[1644590230080,0.06,43619.0,43598.0,0.323919]
[1644590230276,0.06,43619.0,43600.0,0.323919]
[1644590230473,0.06,43619.0,43608.0,0.24046577]
[1644590230674,0.06,43619.0,43610.0,0.08470586]
[1644590230675,0.01063168,43619.0,43610.0,0.08470586]
[1644590230922,0.01063168,43619.0,43613.0,0.05659653]
[1644590231123,0.01063168,43619.0,43614.0,0.34114727]
[1644590231521,0.01063168,43619.0,43615.0,0.3665468]
[1644590231720,0.02383,43618.0,43614.0,0.0387]
[1644590231923,0.01114768,43619.0,43607.0,0.0387]
[1644590232223,0.01114768,43619.0,43608.0,0.0387]
[1644590232224,0.30432324,43610.0,43608.0,0.0387]
[1644590232421,0.02383,43609.0,43593.0,0.0387]
[1644590232619,0.54914252,43609.0,43593.0,0.0387]
[1644590232822,0.02446168,43609.0,43601.0,0.40144062]
[1644590233022,0.00146585,43611.0,43602.0,0.08056802]
[1644590233620,0.00146585,43611.0,43610.0,0.06399894]
[1644590233825,0.51977507,43611.0,43610.0,0.06399894]
[1644590234019,0.56957258,43611.0,43610.0,0.06399894]
[1644590234221,0.56957258,43611.0,43601.0,0.40144062]
[1644590234660,0.61957258,43611.0,43601.0,0.40144062]
[1644590234861,0.61957258,43611.0,43601.0,0.63144062]
[1644590235063,0.05,43608.0,43601.0,0.23]
[1644590235264,0.05,43610.0,43601.0,0.23]
[1644590235464,0.05,43609.0,43601.0,0.23]
[1644590235663,0.05126336,43609.0,43601.0,0.23]
[1644590236467,0.05126336,43609.0,43602.0,0.06648796]
[1644590236668,0.23708674,43608.0,43602.0,0.06648796]
[1644590236866,0.23708674,43608.0,43601.0,0.23]
[1644590236867,0.05,43603.0,43601.0,0.23]
[1644590237069,0.34737397,43602.0,43601.0,0.23]
[1644590237366,0.81761488,43602.0,43601.0,0.23]
[1644590237567,0.81761488,43602.0,43575.0,0.00241487]
[1644590237568,1.1,43601.0,43575.0,0.00241487]
[1644590237770,0.05,43588.0,43575.0,0.21386507]
[1644590237968,0.15065658,43600.0,43575.0,0.21386507]
[1644590237969,0.057398,43593.0,43592.0,0.0377009]
[1644590238172,1.2,43601.0,43576.0,0.36543547]
[1644590238173,0.272199,43606.0,43577.0,0.6990584]
[1644590238419,0.03996336,43609.0,43577.0,0.6990584]
[1644590238420,0.00126336,43609.0,43606.0,0.08525777]
[1644590238619,0.00126336,43609.0,43584.0,0.0573719]
[1644590238620,0.25549578,43602.0,43584.0,0.0573719]
[1644590238817,0.25549578,43602.0,43591.0,0.23083317]
[1644590238818,0.50037568,43602.0,43591.0,0.23083317]
[1644590239023,0.00126336,43609.0,43595.0,0.29788836]
[1644590239619,0.05,43607.0,43584.0,0.11472928]
[1644590239821,0.2,43607.0,43580.0,0.3]
[1644590240020,0.29147203,43600.0,43587.0,0.26484108]
[1644590240219,0.05,43607.0,43587.0,0.26484108]
[1644590240420,0.00126336,43609.0,43587.0,0.26484108]
[1644590240618,0.00126336,43609.0,43599.0,0.06406699]
[1644590240619,0.31635025,43602.0,43599.0,0.06406699]
[1644590240818,0.00126336,43609.0,43599.0,0.04590682]
[1644590241624,0.00126336,43609.0,43607.0,0.07928531]
[1644590241820,0.00126336,43609.0,43607.0,0.04335661]
[1644590242263,0.28460833,43608.0,43607.0,0.04335661]
[1644590242565,0.00126336,43609.0,43608.0,0.323861]
[1644590242763,0.00126336,43609.0,43608.0,0.473861]
[1644590242962,0.00126336,43609.0,43608.0,0.58908613]
[1644590243163,0.00126336,43609.0,43608.0,0.91294713]
[1644590243361,0.00126336,43609.0,43607.0,0.04335661]
[1644590243563,0.00126336,43609.0,43608.0,0.323861]
[1644590243965,0.00126336,43609.0,43596.0,0.00010817]
[1644590244464,0.34337656,43597.0,43596.0,0.00010817]
[1644590244861,0.34337656,43597.0,43585.0,0.3741534]
[1644590244862,0.3,43602.0,43595.0,0.07552006]
[1644590245063,0.22183016,43603.0,43595.0,0.07552006]
[1644590245262,0.00126336,43609.0,43602.0,0.07492133]
[1644590245817,0.00126336,43609.0,43603.0,0.323861]
[1644590246210,0.00126336,43609.0,43602.0,0.07492133]
[1644590246610,0.00126336,43609.0,43603.0,0.323861]
[1644590246813,0.00126336,43609.0,43602.0,0.07492133]
[1644590247010,0.00126336,43609.0,43603.0,0.323861]
[1644590247211,0.00126336,43609.0,43603.0,0.373861]
[1644590247511,0.00126336,43609.0,43603.0,0.323861]
[1644590247712,0.00126336,43609.0,43603.0,0.1]
[1644590247910,0.00126336,43609.0,43604.0,0.323861]
[1644590248110,0.00126336,43609.0,43602.0,0.07492133]
[1644590248312,0.00126336,43609.0,43604.0,0.05]
[1644590248517,0.00126336,43609.0,43605.0,0.323861]
[1644590248712,0.00074411,43613.0,43608.0,0.323861]
[1644590248912,0.00074411,43613.0,43609.0,0.08633376]
[1644590249211,0.01,43619.0,43612.0,1.1]
[1644590249419,0.19527008,43654.0,43614.0,1.1]
[1644590249678,0.1215,43656.0,43630.0,1.4932911]
[1644590249679,0.05,43642.0,43630.0,1.4932911]
[1644590249879,0.4210462,43647.0,43631.0,0.30026708]
[1644590250078,0.0010462,43647.0,43632.0,0.323861]
[1644590250276,0.0010462,43647.0,43632.0,0.1]
[1644590250277,0.26351056,43647.0,43632.0,0.1]
[1644590250477,0.26351056,43647.0,43625.0,0.4387]
[1644590250478,0.56600439,43647.0,43625.0,0.4387]
[1644590250679,0.057325,43645.0,43636.0,0.95302406]
[1644590250880,0.01,43659.0,43643.0,0.59685157]
[1644590251078,0.01,43659.0,43644.0,0.323861]
[1644590251278,0.01,43659.0,43643.0,0.1005]
[1644590251279,0.05,43658.0,43650.0,0.08585875]
[1644590251481,0.3,43657.0,43641.0,0.1]
[1644590251678,0.3,43657.0,43628.0,0.1]
[1644590251679,0.05,43647.0,43628.0,0.1]
[1644590251878,0.05,43643.0,43626.0,0.323861]
[1644590252080,0.114629,43653.0,43627.0,0.27498888]
[1644590252081,0.34755469,43639.0,43627.0,0.27498888]
[1644590252277,0.34755469,43639.0,43628.0,0.323861]
[1644590252677,0.05,43637.0,43632.0,0.63083061]
[1644590252878,0.05,43638.0,43632.0,0.63083061]
[1644590253079,0.20235628,43639.0,43631.0,0.07414038]
[1644590253327,0.20235628,43639.0,43622.0,0.0387]
[1644590253328,0.05,43632.0,43622.0,0.0387]
[1644590253516,0.05,43625.0,43616.0,0.00074593]
[1644590253724,0.00074556,43637.0,43616.0,0.00074593]
[1644590253725,0.05,43632.0,43616.0,0.00074593]
[1644590253918,0.26464649,43616.0,43606.0,0.2579163]
[1644590254116,0.21963264,43617.0,43610.0,0.34607051]
[1644590254315,0.21963264,43617.0,43611.0,0.39957603]
[1644590254516,0.21963264,43617.0,43611.0,0.323668]
[1644590254721,0.27994842,43616.0,43612.0,0.323668]
[1644590254917,0.21963264,43617.0,43612.0,0.323668]
[1644590255315,0.05,43621.0,43612.0,0.323668]
[1644590255516,1.70365902,43625.0,43620.0,0.0694446]
[1644590255719,0.02285,43649.0,43620.0,0.0694446]
[1644590255720,0.05733,43638.0,43621.0,0.323668]
[1644590255919,0.6903,43637.0,43632.0,0.08245877]
[1644590256122,0.05,43646.0,43633.0,0.323668]
[1644590256320,0.22955614,43650.0,43644.0,0.08842221]
[1644590256321,0.60485694,43645.0,43644.0,0.08842221]
[1644590256517,0.60485694,43645.0,43644.0,0.323668]
[1644590256518,0.27899305,43645.0,43644.0,0.323668]
[1644590256718,0.27899305,43645.0,43633.0,0.70274781]
[1644590256719,0.15800686,43643.0,43633.0,0.1]
[1644590257077,0.15800686,43643.0,43623.0,0.164624]
[1644590257381,0.15800686,43643.0,43625.0,0.323668]
[1644590257577,0.15800686,43643.0,43635.0,0.0705742]
[1644590257578,0.19684057,43637.0,43635.0,0.0705742]
[1644590257779,0.24684057,43637.0,43620.0,0.3387]
[1644590257977,0.24684057,43637.0,43622.0,0.23]
[1644590258176,0.24684057,43637.0,43623.0,0.323668]
[1644590258177,0.05,43628.0,43623.0,0.323668]
[1644590258577,0.0007456,43631.0,43623.0,0.323668]
[1644590258778,0.0007456,43631.0,43625.0,0.323668]
[1644590258979,0.0007456,43631.0,43626.0,0.323668]
[1644590259181,0.0007456,43631.0,43627.0,0.323668]
[1644590259378,0.15800686,43643.0,43627.0,0.423668]
[1644590259579,0.15800686,43643.0,43632.0,0.25398503]
[1644590259780,0.00298194,43637.0,43634.0,0.08011437]
[1644590259983,0.00298194,43637.0,43635.0,0.323668]
[1644590260385,0.00298194,43637.0,43621.0,0.323668]
[1644590260581,0.05,43638.0,43609.0,0.323668]
[1644590260823,0.05,43638.0,43625.0,0.30648306]
[1644590260824,0.3036405,43636.0,43625.0,0.30648306]
[1644590261016,0.25987092,43633.0,43626.0,0.323668]
[1644590261215,0.25987092,43633.0,43627.0,0.08594463]
[1644590261414,0.05733,43632.0,43628.0,0.323668]
[1644590261615,0.25987092,43633.0,43615.0,0.323668]
[1644590261616,0.05,43629.0,43615.0,0.323668]
[1644590261817,0.30987092,43633.0,43615.0,0.323668]
[1644590262015,0.34207036,43625.0,43615.0,0.323668]
[1644590262415,0.00073182,43632.0,43619.0,0.24167289]
[1644590262621,0.00073182,43632.0,43628.0,0.08707647]
[1644590262815,0.00073182,43632.0,43629.0,0.323668]
[1644590263014,2.47354459,43639.0,43629.0,0.323668]
[1644590263217,2.47354459,43639.0,43630.0,0.323668]
[1644590263416,0.00073182,43632.0,43628.0,0.323668]
[1644590264016,0.34239187,43629.0,43628.0,0.323668]
[1644590264417,0.63608983,43629.0,43628.0,0.323668]
[1644590264660,0.39369796,43629.0,43627.0,9.756e-05]
[1644590264863,0.34369796,43629.0,43627.0,9.756e-05]
[1644590265061,0.55699379,43629.0,43627.0,9.756e-05]
[1644590265262,0.05,43628.0,43627.0,9.756e-05]
[1644590265665,0.00025287,43632.0,43627.0,0.32376556]
[1644590265862,0.00025287,43633.0,43627.0,0.26425792]
[1644590266061,0.05,43628.0,43614.0,0.00019442]
[1644590266262,0.3,43627.0,43615.0,0.323687]
[1644590266462,0.107339,43628.0,43615.0,0.323687]
[1644590266661,0.23308921,43624.0,43615.0,0.323687]
[1644590266966,0.34149674,43620.0,43615.0,0.323687]
[1644590267162,0.29530126,43617.0,43615.0,0.323687]
[1644590267361,0.05,43622.0,43615.0,0.323687]
[1644590267362,0.00025287,43622.0,43615.0,0.323687]
[1644590267562,0.00025287,43620.0,43614.0,0.00064661]
[1644590267766,0.00025287,43622.0,43618.0,0.08121326]
[1644590268063,0.00070824,43623.0,43619.0,0.323687]
[1644590268064,0.00070826,43621.0,43619.0,0.323687]
[1644590268322,0.00070826,43621.0,43618.0,0.08121326]
[1644590268714,0.00070826,43621.0,43619.0,0.323687]
[1644590269116,0.29870317,43623.0,43619.0,0.323687]
[1644590269317,0.29870317,43623.0,43618.0,0.23]
[1644590269318,0.05,43620.0,43618.0,0.23]
[1644590269517,0.70427663,43619.0,43618.0,0.22952663]
[1644590269716,0.46517863,43619.0,43618.0,0.22952663]
[1644590270118,0.71919517,43619.0,43618.0,0.22952663]
[1644590270323,1.04536548,43619.0,43618.0,0.22952663]
[1644590270920,1.00829317,43619.0,43618.0,0.22952663]
[1644590271121,0.71919517,43619.0,43618.0,0.22952663]
[1644590271322,0.60448517,43619.0,43618.0,0.22952663]
[1644590271521,0.59130708,43619.0,43618.0,0.22952663]
[1644590272166,0.03682191,43619.0,43618.0,0.22952663]
[1644590272364,0.05,43620.0,43618.0,0.22952663]
[1644590272866,0.05,43620.0,43619.0,0.06885471]
[1644590273464,0.00071041,43621.0,43619.0,0.06885471]
[1644590273765,0.50582158,43635.0,43619.0,0.06885471]
[1644590273766,0.28039643,43633.0,43621.0,1.36106613]
[1644590273964,0.28039643,43633.0,43620.0,0.323687]
[1644590273965,0.00025306,43625.0,43618.0,0.22952663]
[1644590274164,0.00284116,43629.0,43623.0,0.323687]
[1644590274367,0.00284116,43629.0,43622.0,0.07753556]
[1644590274368,0.289098,43628.0,43622.0,0.07753556]
[1644590274666,0.00284116,43629.0,43622.0,0.07753556]
[1644590275064,0.00025306,43631.0,43623.0,0.323687]
[1644590275263,0.10733,43634.0,43630.0,0.06980832]
[1644590275264,0.00025306,43632.0,43630.0,0.06980832]
[1644590275466,0.1093869,43634.0,43630.0,0.06980832]
[1644590275467,0.00025306,43633.0,43630.0,0.06980832]
[1644590275665,0.2716488,43634.0,43631.0,0.323682]
[1644590275918,0.22958129,43632.0,43619.0,0.4]
[1644590276215,0.22958129,43632.0,43619.0,0.1]
[1644590276416,0.05,43624.0,43619.0,0.323682]
[1644590276615,0.05,43624.0,43618.0,0.22952663]
[1644590277118,0.18619598,43625.0,43618.0,0.22952663]
[1644590277119,0.05,43619.0,43618.0,0.22952663]
[1644590277516,0.23619598,43625.0,43618.0,0.22952663]
[1644590277517,0.00025306,43624.0,43618.0,0.22952663]
[1644590277717,0.18619598,43625.0,43623.0,7.811e-05]
[1644590277920,0.05,43624.0,43623.0,7.811e-05]
[1644590278123,0.38086583,43624.0,43623.0,7.811e-05]
[1644590279116,0.38086583,43624.0,43623.0,0.32376011]
[1644590279562,0.11521991,43626.0,43623.0,0.32376011]
[1644590279766,0.00051391,43626.0,43624.0,0.323682]
[1644590279965,0.00025306,43629.0,43624.0,0.323682]
[1644590280168,0.00074633,43627.0,43624.0,0.323682]
[1644590280562,0.00074633,43627.0,43623.0,7.811e-05]
[1644590281163,0.00025306,43631.0,43623.0,7.811e-05]
[1644590281364,0.00025306,43629.0,43624.0,0.323682]
[1644590281566,0.00074633,43627.0,43624.0,0.323682]
[1644590281765,0.00074633,43627.0,43624.0,0.423682]
[1644590282363,0.00025306,43630.0,43624.0,0.323682]
[1644590282364,0.2656766,43630.0,43624.0,0.323682]
[1644590282664,0.00074633,43628.0,43624.0,0.323682]
[1644590283523,0.36031087,43634.0,43624.0,0.323682]
[1644590283524,0.00025306,43631.0,43624.0,0.323682]
[1644590283719,0.00025306,43633.0,43624.0,0.323682]
[1644590283922,0.68658393,43634.0,43624.0,0.323682]
[1644590283923,0.00074633,43628.0,43624.0,0.323682]
[1644590284324,0.00074633,43628.0,43624.0,0.423682]
[1644590284521,0.00074633,43628.0,43624.0,0.473682]
[1644590284721,0.00025306,43633.0,43626.0,0.323682]
[1644590284922,0.00025306,43631.0,43626.0,0.423682]
[1644590285223,0.29443037,43632.0,43626.0,0.380999]
[1644590285421,0.29443037,43632.0,43630.0,0.08225723]
[1644590285422,0.05,43631.0,43630.0,0.08225723]
[1644590285624,0.05,43632.0,43630.0,0.40593923]
[1644590285823,0.05,43632.0,43631.0,0.323682]
[1644590286028,0.05,43634.0,43631.0,0.323682]
[1644590286223,0.107324,43635.0,43631.0,0.323682]
[1644590286824,0.057324,43635.0,43630.0,0.08225723]
[1644590287262,0.39001548,43635.0,43630.0,0.08225723]
[1644590287461,0.39052835,43635.0,43631.0,0.323682]
[1644590287661,0.10783687,43635.0,43631.0,0.323682]
[1644590287864,0.05051287,43635.0,43630.0,0.08225723]
[1644590288263,0.38467163,43635.0,43630.0,0.08225723]
[1644590288464,0.05,43631.0,43628.0,0.05731914]
[1644590288770,0.05,43631.0,43626.0,7.821e-05]
[1644590288771,0.307278,43630.0,43626.0,7.821e-05]
[1644590288964,0.114676,43629.0,43626.0,7.821e-05]
[1644590289165,0.05,43627.0,43626.0,7.821e-05]
[1644590290364,0.05,43627.0,43626.0,0.23007821]
[1644590290913,0.05,43627.0,43626.0,0.30285159]
[1644590291111,0.05,43627.0,43626.0,0.23007821]
[1644590291711,0.05,43627.0,43626.0,0.55376021]
[1644590291912,0.05,43627.0,43626.0,0.23007821]
[1644590292116,0.05,43627.0,43626.0,0.23000821]
[1644590292117,0.557278,43627.0,43626.0,0.23000821]
[1644590292314,0.73559752,43627.0,43626.0,0.23000821]
[1644590292514,0.53559752,43627.0,43626.0,0.23000821]
[1644590292712,0.69816267,43627.0,43626.0,0.23]
[1644590292915,1.1,43626.0,43625.0,7.826e-05]
[1644590293113,1.72804411,43626.0,43625.0,7.826e-05]
[1644590293313,1.82804411,43626.0,43625.0,7.826e-05]
[1644590293516,2.09084146,43626.0,43625.0,7.826e-05]
[1644590293917,2.14084146,43626.0,43625.0,7.826e-05]
[1644590294115,2.44811946,43626.0,43625.0,7.826e-05]
[1644590294315,2.14084146,43626.0,43625.0,7.826e-05]
[1644590295160,2.44811946,43626.0,43625.0,7.826e-05]
[1644590295362,0.15,43618.0,43616.0,0.00074509]
[1644590295563,0.96573887,43617.0,43601.0,0.01]
[1644590295768,0.05,43602.0,43601.0,0.01]
[1644590295966,0.357278,43602.0,43601.0,0.01]
[1644590296163,0.67561873,43602.0,43601.0,0.01]
[1644590296362,0.82561873,43602.0,43601.0,0.01]
[1644590297363,2.80727779,43602.0,43601.0,0.01]
[1644590297562,2.65727779,43602.0,43601.0,0.01]
[1644590297966,2.70727779,43602.0,43601.0,0.01]
[1644590298162,2.80727779,43602.0,43601.0,0.01]
[1644590298627,2.80727779,43602.0,43601.0,0.283682]
[1644590298830,0.057377,43601.0,43599.0,0.00182891]
[1644590299230,2.92203379,43602.0,43600.0,0.39936389]
[1644590299231,2.33893706,43602.0,43600.0,0.39936389]
[1644590299429,0.05,43607.0,43600.0,0.39936389]
[1644590299628,0.05,43606.0,43600.0,0.07551189]
[1644590300026,0.057366,43607.0,43600.0,0.07551189]
[1644590300233,0.05,43601.0,43600.0,0.07551189]
[1644590301027,0.34133777,43610.0,43601.0,0.323852]
[1644590301228,0.27453617,43618.0,43601.0,0.323852]
[1644590301429,0.28760447,43618.0,43600.0,0.0001]
[1644590301630,0.057353,43614.0,43600.0,0.0001]
[1644590301830,0.057353,43614.0,43607.0,0.00065106]
[1644590301831,0.29131853,43613.0,43607.0,0.00065106]
[1644590302062,0.36058373,43608.0,43607.0,0.00065106]
[1644590302266,0.36058373,43608.0,43573.0,0.0022]
[1644590302267,0.00065106,43605.0,43573.0,0.0022]
[1644590302464,0.1,43574.0,43570.0,0.0011]
[1644590302662,0.1,43574.0,43569.0,0.0011]
[1644590302663,0.05,43571.0,43556.0,0.0033]
[1644590302865,0.05,43560.0,43556.0,0.0033]
[1644590303064,0.3559826,43560.0,43556.0,0.0033]
[1644590303262,0.45998601,43560.0,43556.0,0.0033]
[1644590303465,0.95998601,43560.0,43556.0,0.0033]
[1644590303663,0.05,43557.0,43556.0,0.0033]
[1644590304060,0.05,43557.0,43542.0,0.36621802]
[1644590304061,0.1,43557.0,43542.0,0.36621802]
[1644590304263,0.88545861,43558.0,43542.0,0.36621802]
[1644590304264,0.41938755,43552.0,43542.0,0.36621802]
[1644590304465,0.74323955,43552.0,43542.0,0.36621802]
[1644590304762,0.114888,43549.0,43544.0,0.31900064]
[1644590304966,0.172332,43549.0,43545.0,0.324136]
[1644590305162,0.38279654,43558.0,43549.0,0.40784167]
[1644590305363,0.08279654,43558.0,43549.0,0.40784167]
[1644590305665,0.057416,43563.0,43549.0,0.40784167]
[1644590305666,0.06193612,43567.0,43551.0,0.06782769]
[1644590305918,0.11193612,43567.0,43560.0,0.20395574]
[1644590306117,0.11193612,43567.0,43561.0,0.39275436]
[1644590306316,0.16193612,43567.0,43561.0,0.06859136]
[1644590306515,0.11193612,43567.0,43561.0,0.06859136]
[1644590306715,0.057414,43566.0,43562.0,0.00074402]
[1644590306914,0.29753482,43565.0,43562.0,0.00074402]
[1644590307120,0.057417,43565.0,43562.0,0.00074402]
[1644590307317,0.15687355,43572.0,43564.0,0.75]
[1644590307520,1.53505928,43588.0,43565.0,1.1]
[1644590307521,0.3,43584.0,43565.0,1.1]
[1644590307723,0.3,43584.0,43561.0,0.44378754]
[1644590307724,0.05,43577.0,43561.0,0.37519618]
[1644590307921,0.05,43574.0,43566.0,0.000744]
[1644590308118,0.057403,43572.0,43566.0,0.000744]
[1644590308319,0.15,43579.0,43566.0,0.000744]
[1644590308320,0.229615,43592.0,43571.0,0.64685157]
[1644590308520,0.29,43599.0,43572.0,0.624163]
[1644590308717,0.29,43599.0,43583.0,0.08556938]
[1644590308718,0.21591703,43589.0,43583.0,0.08556938]
[1644590308918,0.35611969,43577.0,43571.0,0.3]
[1644590309116,0.057389,43584.0,43572.0,0.324163]
[1644590309317,0.057389,43584.0,43583.0,0.00074391]
[1644590309571,0.21591703,43589.0,43583.0,0.00074391]
[1644590309973,0.21591703,43589.0,43585.0,0.40011826]
[1644590310167,0.34425793,43596.0,43586.0,0.324163]
[1644590310367,0.34425793,43596.0,43585.0,0.40011826]
[1644590310368,0.34472301,43589.0,43585.0,0.40011826]
[1644590310569,0.34472301,43589.0,43586.0,0.40977525]
[1644590310774,0.34472301,43589.0,43585.0,0.324163]
[1644590311272,0.341382,43588.0,43584.0,0.00072236]
[1644590311469,0.34569595,43577.0,43564.0,0.26171036]
[1644590311670,0.05,43591.0,43568.0,0.1905624]
[1644590311671,0.291382,43578.0,43568.0,0.1905624]
[1644590311872,0.164788,43589.0,43574.0,0.08684265]
[1644590312069,0.057393,43582.0,43574.0,0.08684265]
[1644590312373,0.172179,43595.0,43568.0,0.4905624]
[1644590312374,0.01,43599.0,43593.0,0.08818344]
[1644590312571,0.01,43599.0,43594.0,0.324163]
[1644590312969,0.01,43599.0,43594.0,0.54633546]
[1644590313169,0.01,43599.0,43594.0,0.324163]
[1644590313422,0.01,43599.0,43577.0,0.0387]
[1644590313619,0.28893186,43591.0,43579.0,0.26963741]
[1644590313817,0.01,43599.0,43580.0,0.324163]
[1644590314017,0.057379,43598.0,43586.0,0.00074241]
[1644590314219,0.01,43599.0,43587.0,0.07498396]
[1644590314220,0.2136082,43590.0,43587.0,0.07498396]
[1644590314417,0.057382,43589.0,43587.0,0.07498396]
[1644590314616,0.057382,43589.0,43586.0,0.00074241]
[1644590314817,0.26070182,43588.0,43587.0,0.324163]
[1644590315020,0.26070182,43588.0,43568.0,0.3751038]